bitfinex-derivatives/quotes_SOLF0:USTF0_20250212
["timestamp","ask_amount","ask_price","bid_price","bid_amount"]
[1739342612189,9.13741448,194.62,194.56,0.03621369]
[1739342614897,9.13741448,194.62,194.56,5.17671369]
[1739342615599,14.27661448,194.62,194.56,5.17671369]
[1739342615989,9.13741448,194.62,194.56,0.03621369]
[1739342616194,9.13741448,194.62,194.57,5.1402]
[1739342618198,14.27641448,194.62,194.56,0.03621369]
[1739342618399,14.27641448,194.62,194.56,5.17671369]
[1739342619198,9.13741448,194.62,194.56,5.17671369]
[1739342619398,5.1393,194.61,194.56,5.17671369]
[1739342619902,14.27641448,194.62,194.56,5.17671369]
[1739342622801,5.1393,194.61,194.56,5.17671369]
[1739342623101,9.13741448,194.62,194.56,0.03621369]
[1739342623301,9.13741448,194.62,194.57,5.1402]
[1739342623596,9.13741448,194.62,194.56,0.03621369]
[1739342624001,14.27661448,194.62,194.56,5.17671369]
[1739342625102,14.27661448,194.62,194.57,5.1402]
[1739342625807,9.13741448,194.62,194.57,9.13741448]
[1739342626008,14.27591448,194.64,194.57,9.13741448]
[1739342626303,9.13741448,194.64,194.57,9.13741448]
[1739342626504,9.13741448,194.64,194.59,0.03650512]
[1739342628003,9.13741448,194.64,194.59,5.17620512]
[1739342628302,9.13741448,194.64,194.59,0.03650512]
[1739342628704,14.27601448,194.64,194.59,0.03650512]
[1739342630901,9.13741448,194.64,194.59,14.3136196]
[1739342631104,9.13741448,194.64,194.59,9.1739196]
[1739342631805,9.13741448,194.68,194.61,9.13741448]
[1739342632001,9.13741448,194.7,194.65,9.13741448]
[1739342632399,9.13741448,194.7,194.66,0.03762587]
[1739342633196,14.27431448,194.7,194.66,0.03762587]
[1739342634601,5.1371,194.69,194.66,0.03762587]
[1739342635808,9.13741448,194.7,194.66,0.03762587]
[1739342637805,5.1372,194.69,194.66,0.03762587]
[1739342638206,9.13741448,194.68,194.66,0.03762587]
[1739342639609,5.1376,194.67,194.66,0.03762587]
[1739342640115,9.13741448,194.68,194.59,9.13741448]
[1739342640315,9.13741448,194.64,194.59,9.13741448]
[1739342640712,14.27581448,194.64,194.57,9.13741448]
[1739342641017,9.13741448,194.64,194.57,9.13741448]
[1739342641216,0.03423619,194.62,194.59,0.03248496]
[1739342641813,14.31065067,194.62,194.59,0.03248496]
[1739342643918,0.03423619,194.62,194.59,0.03248496]
[1739342644516,0.03423619,194.62,194.59,5.17208496]
[1739342644914,0.03423619,194.62,194.59,9.16989944]
[1739342645811,0.03423619,194.62,194.6,5.1395]
[1739342649919,0.03423619,194.62,194.6,5.1393]
[1739342650420,0.03423619,194.62,194.59,9.16989944]
[1739342650615,0.03423619,194.62,194.59,14.30959944]
[1739342650816,0.03423619,194.62,194.59,9.16989944]
[1739342651520,0.03423619,194.62,194.6,5.1395]
[1739342651919,0.03423619,194.62,194.59,9.16989944]
[1739342652621,0.03423619,194.62,194.6,5.1395]
[1739342654817,0.03423619,194.62,194.61,14.27661448]
[1739342657426,9.13741448,194.66,194.59,0.03248496]
[1739342657625,5.1395,194.6,194.59,0.03248496]
[1739342657824,5.1395,194.6,194.54,9.13741448]
[1739342658326,5.1395,194.6,194.54,14.27841448]
[1739342658527,9.13741448,194.61,194.54,14.27841448]
[1739342658528,5.1398,194.59,194.55,0.03469192]
[1739342658828,9.13741448,194.61,194.55,5.17549192]
[1739342659124,9.13741448,194.63,194.56,9.13741448]
[1739342659623,9.13741448,194.63,194.58,0.03912198]
[1739342659826,5.1391,194.62,194.58,0.03912198]
[1739342660118,9.13741448,194.63,194.58,0.03912198]
[1739342660318,5.1392,194.61,194.58,0.03912198]
[1739342661229,14.27661448,194.61,194.58,0.03912198]
[1739342661431,5.1395,194.6,194.58,0.03912198]
[1739342662232,5.1397,194.59,194.58,0.03912198]
[1739342662530,14.27711448,194.59,194.58,0.03912198]
[1739342664031,5.1395,194.6,194.58,0.03912198]
[1739342664332,9.13741448,194.61,194.58,0.03912198]
[1739342664931,5.1395,194.6,194.58,0.03912198]
[1739342665329,9.13741448,194.61,194.58,0.03912198]
[1739342665634,5.1395,194.6,194.58,0.03912198]
[1739342665833,9.13741448,194.61,194.58,0.03912198]
[1739342668130,9.13741448,194.63,194.58,0.03912198]
[1739342669735,9.13741448,194.63,194.6,5.1395]
[1739342669936,9.13741448,194.63,194.58,0.03912198]
[1739342670235,9.13741448,194.63,194.58,9.17653646]
[1739342670433,14.27581448,194.65,194.59,5.1395]
[1739342670634,14.27581448,194.65,194.58,9.17653646]
[1739342671339,14.27511448,194.67,194.62,5.1388]
[1739342671533,14.27511448,194.67,194.62,14.27621448]
[1739342671739,9.13741448,194.67,194.63,0.03279615]
[1739342672335,9.13741448,194.67,194.63,5.17129615]
[1739342673939,9.13741448,194.67,194.63,0.03279615]
[1739342676438,9.13741448,194.67,194.63,5.17149615]
[1739342676643,5.1374,194.68,194.63,5.17149615]
[1739342676939,9.13741448,194.69,194.63,0.03279615]
[1739342677245,9.13741448,194.69,194.64,5.1382]
[1739342677446,9.13741448,194.69,194.64,14.27561448]
[1739342678351,9.13741448,194.69,194.64,9.13741448]
[1739342678547,14.27401448,194.71,194.66,5.1379]
[1739342678740,14.27401448,194.71,194.64,9.13741448]
[1739342678947,14.27401448,194.71,194.67,0.0387419]
[1739342679446,9.13741448,194.71,194.67,0.0387419]
[1739342680052,5.1369,194.7,194.67,0.0387419]
[1739342680253,9.13741448,194.71,194.67,0.0387419]
[1739342681052,14.27421448,194.71,194.67,0.0387419]
[1739342681352,9.13741448,194.71,194.67,0.0387419]
[1739342682043,14.27401448,194.71,194.67,0.0387419]
[1739342682248,9.13741448,194.71,194.67,0.0387419]
[1739342683453,9.13741448,194.71,194.67,5.1763419]
[1739342683749,9.13741448,194.73,194.67,0.0387419]
[1739342684753,9.13741448,194.73,194.68,5.1373]
[1739342686454,9.13741448,194.73,194.68,14.27471448]
[1739342689057,9.13741448,194.73,194.68,9.13741448]
[1739342689359,9.13741448,194.73,194.69,5.1371]
[1739342689652,85.40963617,194.74,194.7,5.1367]
[1739342689859,9.13741448,194.75,194.7,5.1367]
[1739342691058,14.27291448,194.75,194.7,5.1367]
[1739342691957,14.27291448,194.75,194.68,9.13741448]
[1739342692656,14.27291448,194.75,194.69,5.1369]
[1739342693057,14.27291448,194.75,194.68,9.13741448]
[1739342693257,14.27291448,194.75,194.69,5.1371]
[1739342694059,14.27291448,194.75,194.7,5.1368]
[1739342695659,14.27291448,194.75,194.68,9.13741448]
[1739342695660,14.27211448,194.79,194.73,5.136]
[1739342696056,14.27211448,194.79,194.74,0.03669325]
[1739342698160,9.13741448,194.79,194.74,5.17239325]
[1739342699358,14.27201448,194.79,194.74,0.03669325]
[1739342700157,9.13741448,194.79,194.75,5.1354]
[1739342700463,9.13741448,194.81,194.74,9.17410773]
[1739342700766,9.13741448,194.81,194.76,5.1352]
[1739342700959,9.13741448,194.81,194.74,9.17410773]
[1739342701359,9.13741448,194.79,194.74,0.03669325]
[1739342701558,9.13741448,194.79,194.72,9.13741448]
[1739342701759,9.13741448,194.79,194.75,0.03609583]
[1739342702061,9.13741448,194.79,194.75,5.17139583]
[1739342702263,9.13741448,194.79,194.75,0.03609583]
[1739342703967,9.13741448,194.81,194.75,0.03609583]
[1739342704260,9.13741448,194.81,194.74,9.13741448]
[1739342704469,9.13741448,194.83,194.78,5.1345]
[1739342704868,9.13741448,194.83,194.79,0.03826691]
[1739342706169,9.13741448,194.83,194.79,5.17246691]
[1739342706869,9.13741448,194.85,194.79,5.17246691]
[1739342707168,14.27031448,194.85,194.79,5.17246691]
[1739342708066,5.1332,194.84,194.79,0.03826691]
[1739342708274,9.13741448,194.83,194.79,0.03826691]
[1739342708966,5.1337,194.82,194.79,0.03826691]
[1739342709163,9.13741448,194.81,194.79,0.03826691]
[1739342709869,14.27161448,194.81,194.79,0.03826691]
[1739342710273,9.13741448,194.81,194.79,0.03826691]
[1739342710472,9.13741448,194.83,194.79,0.03826691]
[1739342711173,5.1342,194.8,194.79,0.03826691]
[1739342711871,9.13741448,194.83,194.79,0.03826691]
[1739342712472,5.1338,194.82,194.79,0.03826691]
[1739342712675,9.13741448,194.83,194.79,0.03826691]
[1739342712975,9.13741448,194.83,194.79,5.17256691]
[1739342713176,9.13741448,194.85,194.79,0.03826691]
[1739342714372,9.13741448,194.85,194.79,5.17276691]
[1739342714870,9.13741448,194.85,194.79,0.03826691]
[1739342715067,9.13741448,194.85,194.81,5.1339]
[1739342715478,9.13741448,194.87,194.83,5.1334]
[1739342715975,9.13741448,194.87,194.83,5.16828067]
[1739342716369,9.13741448,194.89,194.84,5.1331]
[1739342717778,9.13741448,194.89,194.83,0.03488067]
[1739342719479,9.13741448,194.87,194.83,0.03488067]
[1739342719781,9.13741448,194.85,194.83,0.03488067]
[1739342720280,14.27051448,194.85,194.83,0.03488067]
[1739342720485,9.13741448,194.85,194.83,0.03488067]
[1739342721781,5.1331,194.84,194.83,0.03488067]
[1739342721984,9.13741448,194.85,194.83,0.03488067]
[1739342722183,9.13741448,194.87,194.83,0.03488067]
[1739342722480,5.1331,194.84,194.83,0.03488067]
[1739342723581,5.1339,194.81,194.76,9.13741448]
[1739342724073,5.1337,194.82,194.77,5.1349]
[1739342724277,5.1337,194.82,194.78,9.13741448]
[1739342724472,0.03443819,194.81,194.78,9.17151666]
[1739342725781,0.03443819,194.81,194.78,14.30621666]
[1739342726280,0.03443819,194.81,194.78,9.17151666]
[1739342726486,5.1345,194.79,194.78,0.03410218]
[1739342726783,9.13741448,194.79,194.78,0.03410218]
[1739342727382,14.27191448,194.79,194.78,0.03410218]
[1739342728891,9.13741448,194.79,194.72,73.31369437]
[1739342729187,9.13741448,194.77,194.72,73.31369437]
[1739342729486,9.13741448,194.77,194.73,5.136]
[1739342730088,9.17413813,194.77,194.73,5.17533852]
[1739342731183,9.17413813,194.77,194.73,0.03933852]
[1739342731383,9.17413813,194.77,194.74,5.1358]
[1739342731982,9.17413813,194.77,194.73,5.17533852]
[1739342732288,9.17413813,194.77,194.73,0.03933852]
[1739342733790,14.30913813,194.77,194.73,0.03933852]
[1739342735188,9.13741448,194.75,194.73,0.03933852]
[1739342735984,5.1358,194.74,194.73,0.03933852]
[1739342736184,9.13741448,194.75,194.73,0.03933852]
[1739342737291,5.1358,194.74,194.73,0.03933852]
[1739342737883,5.1364,194.72,194.67,5.1376]
[1739342738089,15.44,194.8,194.64,9.13741448]
[1739342738090,9.13741448,194.7,194.64,9.13741448]
[1739342739092,0.03468326,194.69,194.66,5.1379]
[1739342739591,9.13741448,194.68,194.65,5.17273479]
[1739342739792,9.13741448,194.68,194.65,0.03463479]
[1739342740280,9.13741448,194.66,194.65,0.03463479]
[1739342744591,14.27531448,194.66,194.65,0.03463479]
[1739342744793,9.13741448,194.66,194.58,1.614]
[1739342744990,9.13741448,194.63,194.61,5.139]
[1739342745187,9.13741448,194.63,194.58,10.75141448]
[1739342745390,9.13741448,194.65,194.58,10.75141448]
[1739342745685,9.13741448,194.67,194.6,9.13741448]
[1739342745890,0.03919456,194.63,194.6,9.17643503]
[1739342746485,0.03919456,194.63,194.62,5.1389]
[1739342746688,9.456e-05,194.63,194.62,5.1389]
[1739342750595,9.13750904,194.63,194.6,5.17832055]
[1739342751296,9.13750904,194.63,194.6,0.03902055]
[1739342751497,9.13750904,194.63,194.61,5.1391]
[1739342751696,9.456e-05,194.63,194.61,5.1391]
[1739342751898,9.456e-05,194.63,194.62,5.1389]
[1739342753600,9.456e-05,194.63,194.6,0.03902055]
[1739342753797,9.13750904,194.63,194.6,0.03902055]
[1739342754601,14.27620904,194.63,194.6,0.03902055]
[1739342755099,9.13741448,194.61,194.6,0.03902055]
[1739342755904,9.13750904,194.63,194.6,0.03902055]
[1739342756803,9.13750904,194.63,194.61,5.1391]
[1739342757703,9.456e-05,194.63,194.62,5.1389]
[1739342758604,9.456e-05,194.63,194.61,5.1392]
[1739342759200,9.456e-05,194.63,194.6,0.03902055]
[1739342759403,9.456e-05,194.63,194.6,5.17842055]
[1739342759698,9.13750904,194.63,194.6,5.17842055]
[1739342760003,9.13750904,194.63,194.6,0.03902055]
[1739342760202,9.13741448,194.61,194.6,0.03902055]
[1739342761800,14.27661448,194.61,194.6,0.03902055]
[1739342762806,9.13741448,194.61,194.53,5.1413]
[1739342763006,9.13741448,194.57,194.5,10.62501448]
[1739342763302,9.13741448,194.55,194.52,5.1416]
[1739342763901,9.13741448,194.53,194.5,6.6295]
[1739342764106,9.13741448,194.53,194.52,0.03707582]
[1739342766209,9.13741448,194.53,194.52,5.17867582]
[1739342766397,9.175353,194.55,194.52,0.03707582]
[1739342766805,9.175353,194.55,194.52,5.17867582]
[1739342767007,9.13741448,194.53,194.52,0.03707582]
[1739342772112,14.27871448,194.53,194.52,0.03707582]
[1739342772410,9.13741448,194.53,194.44,1.5578]
[1739342772611,9.13741448,194.46,194.43,5.1439]
[1739342772819,9.13741448,194.44,194.38,10.71301448]
[1739342773011,9.13741448,194.41,194.38,1.5756]
[1739342773511,9.13741448,194.39,194.38,0.03487866]
[1739342774308,9.13741448,194.39,194.31,3.1457]
[1739342774508,9.13741448,194.34,194.31,1.5132]
[1739342775209,9.13741448,194.34,194.3,28.61090165]
[1739342775503,9.13741448,194.32,194.28,5.1477]
[1739342775705,0.0327025,194.34,194.3,0.03798796]
[1739342776410,0.0327025,194.34,194.31,5.1471]
[1739342776907,0.0327025,194.34,194.3,0.03798796]
[1739342777114,0.0327025,194.34,194.32,5.1467]
[1739342778214,14.31130875,194.41,194.3,0.03798796]
[1739342778813,14.31130875,194.44,194.32,14.31130875]
[1739342779008,14.31130875,194.44,194.33,1.5486]
[1739342779214,0.03443555,194.4,194.36,0.0347162]
[1739342779816,0.03443555,194.4,194.39,5.145]
[1739342780411,0.03443555,194.4,194.37,5.1453]
[1739342780613,0.03443555,194.4,194.36,0.0347162]
[1739342781014,0.03443555,194.4,194.39,5.145]
[1739342781707,209.31130875,194.47,194.42,5.1442]
[1739342781910,14.31130875,194.47,194.35,14.31130875]
[1739342782513,14.31130875,194.47,194.33,3.0668]
[1739342782713,14.31130875,194.44,194.33,3.0668]
[1739342782912,0.03783715,194.42,194.38,0.03530239]
[1739342783716,0.03783715,194.42,194.39,5.1448]
[1739342783914,0.03783715,194.42,194.38,0.03530239]
[1739342784926,0.03783715,194.42,194.39,5.1448]
[1739342785219,0.03783715,194.42,194.38,0.03530239]
[1739342785616,0.03783715,194.42,194.38,5.18040239]
[1739342785921,14.31130875,194.41,194.38,0.03530239]
[1739342787515,0.03783715,194.42,194.38,0.03530239]
[1739342788715,19.45600875,194.41,194.38,0.03530239]
[1739342789615,5.1448,194.4,194.38,0.03530239]
[1739342791223,19.45580875,194.41,194.38,0.03530239]
[1739342792216,5.1445,194.41,194.38,0.03530239]
[1739342793125,5.1448,194.4,194.38,0.03530239]
[1739342793722,5.145,194.39,194.38,0.03530239]
[1739342795027,5.1448,194.4,194.38,0.03530239]
[1739342795227,0.03783715,194.42,194.38,0.03530239]
[1739342795819,5.145,194.39,194.38,0.03530239]
[1739342798833,0.03783715,194.42,194.38,0.03530239]
[1739342800625,5.1448,194.4,194.38,0.03530239]
[1739342801130,5.145,194.4,194.38,0.03530239]
[1739342801341,0.03783715,194.42,194.38,0.03530239]
[1739342801933,5.1446,194.41,194.38,0.03530239]
[1739342802133,0.03783715,194.42,194.38,0.03530239]
[1739342804630,5.18203715,194.42,194.38,0.03530239]
[1739342804831,0.03783715,194.42,194.38,0.03530239]
[1739342805632,0.03783715,194.42,194.39,5.145]
[1739342805832,5.18223715,194.42,194.38,0.03530239]
[1739342806133,0.03783715,194.42,194.38,0.03530239]
[1739342806433,5.1445,194.41,194.38,0.03530239]
[1739342807536,5.1446,194.41,194.38,0.03530239]
[1739342808530,0.03783715,194.42,194.38,0.03530239]
[1739342808731,14.31130875,194.41,194.38,0.03530239]
[1739342809834,5.145,194.39,194.38,0.03530239]
[1739342811937,5.1448,194.4,194.38,0.03530239]
[1739342812735,5.18233715,194.42,194.38,0.03530239]
[1739342812935,0.03783715,194.42,194.38,0.03530239]
[1739342813437,5.18213715,194.42,194.38,0.03530239]
[1739342814139,5.18213715,194.42,194.38,5.18060239]
[1739342814542,5.18213715,194.42,194.38,0.03530239]
[1739342815538,0.03783715,194.42,194.38,0.03530239]
[1739342817340,5.1446,194.41,194.38,0.03530239]
[1739342817735,14.29625415,194.41,194.38,0.03530239]
[1739342818139,5.145,194.39,194.38,0.03530239]
[1739342818635,14.29665415,194.39,194.38,0.03530239]
[1739342827855,9.15165415,194.39,194.38,0.03530239]
[1739342828460,14.29665415,194.39,194.38,0.03530239]
[1739342830258,9.15165415,194.39,194.38,0.03530239]
[1739342834863,14.29665415,194.39,194.38,0.03530239]
[1739342842268,9.15165415,194.39,194.3,1.581]
[1739342842468,9.15165415,194.34,194.31,5.1471]
[1739342843262,9.15165415,194.34,194.31,5.18659633]
[1739342843263,9.18699219,194.34,194.31,5.18659633]
[1739342846867,14.33339219,194.34,194.31,5.18659633]
[1739342847170,9.18699219,194.34,194.31,5.18659633]
[1739342847968,9.18699219,194.34,194.31,0.03949633]
[1739342848667,14.33339219,194.34,194.31,0.03949633]
[1739342848867,9.18699219,194.34,194.31,5.18639633]
[1739342849175,14.33339219,194.34,194.31,0.03949633]
[1739342849869,9.18699219,194.34,194.31,0.03949633]
[1739342850770,9.18699219,194.34,194.31,5.18639633]
[1739342852675,14.33339219,194.34,194.31,5.18639633]
[1739342853373,9.18699219,194.34,194.31,5.18639633]
[1739342853676,9.18699219,194.34,194.31,0.03949633]
[1739342854574,9.15165415,194.32,194.31,0.03949633]
[1739342854776,14.29855415,194.32,194.31,0.03949633]
[1739342856579,9.15165415,194.32,194.31,0.03949633]
[1739342858581,14.29855415,194.32,194.31,0.03949633]
[1739342860783,9.15165415,194.32,194.31,0.03949633]
[1739342861679,14.29855415,194.32,194.31,0.03949633]
[1739342864082,9.15165415,194.32,194.31,0.03949633]
[1739342866185,14.29855415,194.32,194.31,0.03949633]
[1739342869283,5.1483,194.27,194.22,9.15165415]
[1739342869487,14.29995415,194.27,194.21,1.5077]
[1739342870583,0.0347541,194.26,194.22,5.1832054]
[1739342870791,9.15165415,194.25,194.22,0.0337054]
[1739342871691,14.30045415,194.25,194.22,0.0337054]
[1739342872185,9.15165415,194.23,194.22,0.0337054]
[1739342876297,9.15165415,194.23,194.22,5.1832054]
[1739342876597,0.0347541,194.26,194.22,5.1832054]
[1739342876598,9.15165415,194.25,194.22,0.0337054]
[1739342877189,9.15165415,194.25,194.24,5.149]
[1739342879401,0.0347541,194.26,194.25,5.1487]
[1739342879605,0.0347541,194.26,194.22,0.0337054]
[1739342880199,0.0347541,194.26,194.23,5.1492]
[1739342880394,0.0347541,194.26,194.22,0.0337054]
[1739342880699,0.0347541,194.26,194.23,5.1492]
[1739342880905,0.0347541,194.26,194.22,0.0337054]
[1739342881102,0.0347541,194.26,194.22,9.18535955]
[1739342881318,9.15165415,194.29,194.27,5.148]
[1739342881703,9.15165415,194.29,194.22,9.15165415]
[1739342882005,9.15165415,194.29,194.26,5.1485]
[1739342882209,9.15165415,194.29,194.22,9.15165415]
[1739342882401,9.1895843,194.29,194.26,0.03514898]
[1739342883112,0.03793015,194.29,194.26,0.03514898]
[1739342883810,9.1895843,194.29,194.26,0.03514898]
[1739342884213,9.1895843,194.29,194.27,5.1482]
[1739342884421,0.03793015,194.29,194.26,0.03514898]
[1739342885213,39.99165415,194.27,194.0,178.85374595]
[1739342885412,9.15165415,194.07,194.0,182.06554595]
[1739342885610,9.15165415,194.07,194.05,143.08299676]
[1739342885816,9.15165415,194.07,194.05,132.56477087]
[1739342886016,24.57165415,194.07,194.05,87.53530848]
[1739342886214,29.72525415,194.07,194.05,71.20070848]
[1739342886409,29.72525415,194.07,194.05,62.54790848]
[1739342886811,29.72525415,194.07,194.05,54.78430848]
[1739342887214,29.72525415,194.07,194.05,46.16530848]
[1739342887716,14.36088712,194.06,194.05,30.86047504]
[1739342887921,5.154,194.05,194.04,0.03269208]
[1739342888216,20.574,194.05,194.03,145.69270627]
[1739342888417,20.574,194.05,194.03,111.71591139]
[1739342888618,15.42,194.03,193.87,19.51968712]
[1739342888914,14.36088712,193.99,193.87,19.51968712]
[1739342889119,14.36088712,193.99,193.88,5.1584]
[1739342889416,0.03681493,193.95,193.91,0.03264713]
[1739342890913,0.03681493,193.95,193.91,14.39353425]
[1739342891109,84.72333588,193.99,193.91,14.39353425]
[1739342892315,0.03767957,193.97,193.91,14.39353425]
[1739342892516,0.03767957,193.97,193.91,14.36088712]
[1739342892715,0.03767957,193.97,193.94,5.1569]
[1739342892916,84.72333588,194.0,193.94,14.36088712]
[1739342893115,84.72333588,194.0,193.97,14.36088712]
[1739342893419,17.01229342,194.05,193.98,6.7594]
[1739342894217,0.03801935,194.03,194.0,0.03480003]
[1739342895918,0.03801935,194.03,194.0,5.1421945]
[1739342896418,17.01229342,194.02,194.0,5.1421945]
[1739342896822,17.01229342,194.02,193.98,1.6035]
[1739342897116,17.01229342,194.02,193.98,0.03290678]
[1739342897319,17.01229342,194.01,193.98,0.03290678]
[1739342897919,17.01229342,194.01,193.99,5.1556]
[1739342898314,17.01229342,194.01,193.98,0.03290678]
[1739342898520,0.03801935,194.03,193.98,0.03290678]
[1739342899213,14.36088712,194.02,193.89,14.36088712]
[1739342899423,14.36088712,193.99,193.81,1.6086]
[1739342899718,14.36088712,193.99,193.83,14.36088712]
[1739342899918,14.36088712,193.96,193.83,14.36088712]
[1739342900308,14.36088712,193.96,193.88,5.1585]
[1739342900511,0.03935547,193.91,193.88,5.19783389]
[1739342900911,0.03935547,193.91,193.88,0.03933389]
[1739342901714,0.03935547,193.91,193.9,5.158]
[1739342902522,0.03935547,193.91,193.8,14.36088712]
[1739342902724,14.36088712,193.89,193.76,14.36088712]
[1739342902924,14.36088712,193.89,193.77,4.6362]
[1739342903219,14.36088712,193.86,193.82,5.1599]
[1739342903423,14.36088712,193.86,193.77,4.6362]
[1739342903614,14.36088712,193.86,193.8,5.1605]
[1739342903817,0.03446226,193.83,193.8,0.03596599]
[1739342905517,14.39534938,193.83,193.8,0.03596599]
[1739342905824,14.36088712,193.81,193.61,14.36088712]
[1739342906014,14.36088712,193.74,193.61,14.36088712]
[1739342906216,14.36088712,193.77,193.64,14.36088712]
[1739342906418,14.36088712,193.77,193.7,5.1634]
[1739342906621,14.36088712,193.77,193.67,8.55075385]
[1739342906824,14.36088712,193.77,193.72,0.03935522]
[1739342907124,0.03923589,193.75,193.72,0.03935522]
[1739342908631,0.03923589,193.75,193.72,5.20205522]
[1739342908928,0.03923589,193.75,193.72,0.03935522]
[1739342909630,14.36088712,193.74,193.72,0.03935522]
[1739342909831,0.03923589,193.75,193.72,0.03935522]
[1739342910826,0.03923589,193.75,193.72,5.20215522]
[1739342911229,0.03923589,193.75,193.72,0.03935522]
[1739342911931,0.03923589,193.75,193.74,5.1623]
[1739342913019,5.1604,193.81,193.74,5.1623]
[1739342913424,14.36088712,193.83,193.73,5.1623]
[1739342913628,14.36088712,193.83,193.7,14.36088712]
[1739342913826,19.52098712,193.83,193.7,14.36088712]
[1739342914129,0.0380349,193.78,193.76,5.1617]
[1739342914526,0.0380349,193.78,193.75,5.20061863]
[1739342914727,0.0380349,193.78,193.75,0.03861863]
[1739342915028,0.0380349,193.78,193.76,5.1618]
[1739342915230,0.0380349,193.78,193.75,0.03861863]
[1739342915921,0.0380349,193.78,193.76,5.1617]
[1739342917627,0.0380349,193.78,193.77,5.1615]
[1739342918322,14.36088712,193.9,193.76,14.36088712]
[1739342918529,14.36088712,193.9,193.76,15.91558712]
[1739342918729,14.36088712,193.85,193.81,5.1604]
[1739342919023,14.36088712,193.85,193.73,14.36088712]
[1739342919429,0.03314683,193.81,193.8,5.1604]
[1739342922028,14.36088712,193.91,193.79,14.36088712]
[1739342922233,14.36088712,193.91,193.83,5.1597]
[1739342922631,5.1581,193.9,193.84,5.1594]
[1739342922930,14.36088712,193.91,193.84,5.1594]
[1739342923127,5.1588,193.87,193.85,0.03702463]
[1739342923327,14.36088712,193.88,193.85,0.03702463]
[1739342923924,5.1591,193.86,193.85,0.03702463]
[1739342924128,14.36088712,193.88,193.85,0.03702463]
[1739342924726,19.51968712,193.88,193.85,0.03702463]
[1739342926240,5.1588,193.87,193.85,0.03702463]
[1739342926537,14.36088712,193.88,193.85,0.03702463]
[1739342926732,5.1591,193.86,193.85,0.03702463]
[1739342926937,14.36088712,193.88,193.85,0.03702463]
[1739342927340,5.1591,193.87,193.85,0.03702463]
[1739342927837,14.36088712,193.88,193.85,0.03702463]
[1739342928140,0.03581649,193.89,193.85,0.03702463]
[1739342928535,0.03581649,193.89,193.87,5.1586]
[1739342929341,0.03581649,193.89,193.88,5.1586]
[1739342934235,0.03581649,193.89,193.87,5.1588]
[1739342934437,0.03581649,193.89,193.86,1.524]
[1739342935840,0.03581649,193.89,193.88,5.1586]
[1739342936841,14.36088712,193.97,193.9,5.158]
[1739342937042,5.1567,193.96,193.86,3.0746]
[1739342937240,14.36088712,193.97,193.86,3.0746]
[1739342937834,14.36088712,194.0,193.86,3.0746]
[1739342938043,0.03257295,193.93,193.9,0.03298243]
[1739342938941,0.03257295,193.93,193.92,5.1575]
[1739342939442,14.36088712,194.0,193.95,5.1564]
[1739342939740,14.36088712,194.0,193.87,14.36088712]
[1739342940646,0.03840045,193.95,193.94,5.1569]
[1739342940842,0.03840045,193.95,193.91,0.03921303]
[1739342941036,0.03840045,193.95,193.91,5.19691303]
[1739342941241,0.03840045,193.95,193.91,0.03921303]
[1739342943143,85.7487624,193.99,193.91,0.03921303]
[1739342944147,0.03645741,193.97,193.91,0.03921303]
[1739342944446,0.03645741,193.97,193.96,5.1564]
[1739342945345,14.36088712,194.03,194.0,5.1553]
[1739342945736,5.1541,194.05,194.0,5.1553]
[1739342945942,5.1544,194.04,194.0,5.1553]
[1739342946139,5.1544,194.04,193.98,5.1557]
[1739342946342,0.03966832,194.04,194.0,0.03473765]
[1739342947546,5.19406832,194.04,194.0,0.03473765]
[1739342947748,0.03966832,194.04,194.0,0.03473765]
[1739342948247,0.03966832,194.04,194.02,5.1546]
[1739342948445,0.03966832,194.04,194.0,0.03473765]
[1739342949447,0.03966832,194.04,194.0,5.18983765]
[1739342949747,0.03966832,194.04,194.0,0.03473765]
[1739342950042,0.03966832,194.04,194.02,5.1546]
[1739342950547,0.03966832,194.04,194.0,0.03473765]
[1739342951549,0.03966832,194.04,194.01,5.1549]
[1739342951947,0.03966832,194.04,194.03,5.1546]
[1739342954351,14.36088712,194.1,194.0,0.03473765]
[1739342954745,5.1527,194.11,194.0,0.03473765]
[1739342954945,14.36088712,194.13,194.02,14.36088712]
[1739342955454,0.03546634,194.09,194.06,0.03497854]
[1739342957247,0.03546634,194.09,194.07,5.1535]
[1739342957851,0.03546634,194.09,194.06,0.03497854]
[1739342958553,209.36088712,194.19,194.12,5.1522]
[1739342958857,14.36088712,194.19,194.12,5.1522]
[1739342959057,5.1511,194.16,194.07,1.585]
[1739342959455,14.36088712,194.22,194.08,14.36088712]
[1739342959760,14.36088712,194.19,194.1,0.03439641]
[1739342959959,14.36088712,194.19,194.07,1.585]
[1739342960269,5.1511,194.17,194.13,0.03639545]
[1739342960453,14.36088712,194.16,194.13,0.03639545]
[1739342960653,14.36088712,194.16,194.07,1.585]
[1739342960859,19.51218712,194.16,194.13,0.03772174]